[Event "47th Rilton Cup 2017"]
[Site "?"]
[Date "2018.01.02"]
[Round "6"]
[White "Golikov, Daniil"]
[Black "Tari, Aryan"]
[Result "0-1"]
[ECO "A36"]
[WhiteElo "2220"]
[BlackElo "2593"]
[PlyCount "120"]
[EventDate "2018.??.??"]
[EventType "swiss"]
[EventCountry "SWE"]
[SourceTitle "Stockholm"]
[TimeControl "40/5400+30:1800+30"]
[WhiteClock "0:23:15"]
[BlackClock "0:11:49"]

1. c4 {[%emt 0:00:00]} g6 {[%emt 0:01:05]} 2. Nc3 {[%emt 0:00:00]} c5 {[%emt 0:00:18]} 3. g3 {[%emt 0:00:08]} Bg7 {[%emt 0:00:09]} 4. Bg2 {[%emt 0:00:05]} Nc6 {[%emt 0:00:09]} 5. d3 {[%emt 0:00:15]} e6 {[%emt 0:02:11]} 6. e4 {[%emt 0:00:13]} Nge7 {[%emt 0:01:00]} 7. Nge2 {[%emt 0:00:15]} O-O {[%emt 0:01:03]} 8. O-O {[%emt 0:00:20]} d6 {[%emt 0:02:40]} 9. Be3 {[%emt 0:03:03]} Nd4 {[%emt 0:01:47]} 10. Rb1 {[%emt 0:03:09]} Nec6 {[%emt 0:02:44]} 11. a3 {[%emt 0:02:20]} a5 {[%emt 0:16:22]} 12. a4 {[%emt 0:03:16]} Bd7 {[%emt 0:05:21]} 13. Nb5 {[%emt 0:05:29]} Qe7 {[%emt 0:05:52]} 14. b3 {[%emt 0:11:20]} Nxe2+ {[%emt 0:05:59]} 15. Qxe2 {[%emt 0:00:16]} Nb4 {[%emt 0:00:20]} 16. Qd2 {[%emt 0:12:31]} Bxb5 {[%emt 0:07:05]} 17. cxb5 {[%emt 0:08:57]} d5 {[%emt 0:02:58]} 18. exd5 {[%emt 0:02:29]} exd5 {[%emt 0:01:13]} 19. d4 {[%emt 0:10:42]} cxd4 {[%emt 0:03:52]} 20. Bxd4 {[%emt 0:00:04]} Bxd4 {[%emt 0:03:28]} 21. Qxd4 {[%emt 0:00:01]} Qd6 {[%emt 0:00:13]} 22. Rbd1 {[%emt 0:02:38]} Rfd8 {[%emt 0:01:05]} 23. Rd2 {[%emt 0:07:14]} Rac8 {[%emt 0:01:14]} 24. Rfd1 {[%emt 0:00:10]} Rc5 {[%emt 0:03:07]} 25. h4 {[%emt 0:01:09]} h5 {[%emt 0:01:20]} 26. Bf3 {[%emt 0:01:24]} b6 {[%emt 0:00:30]} 27. Re2 {[%emt 0:04:22]} Nc2 {[%emt 0:02:32]} 28. Qb2 {[%emt 0:03:09]} Rdc8 {[%emt 0:00:29]} 29. Qe5 {[%emt 0:06:40]} Qxe5 {[%emt 0:01:50]} 30. Rxe5 {[%emt 0:00:01]} Nb4 {[%emt 0:00:16]} 31. Kg2 {[%emt 0:02:15]} Kf8 {[%emt 0:02:56]} 32. Rd4 {[%emt 0:01:39]} Re8 {[%emt 0:01:31]} 33. Rg5 {[%emt 0:00:55]} Nc2 {[%emt 0:02:25]} 34. Rf4 {[%emt 0:01:13]} Ne1+ {[%emt 0:00:05]} 35. Kh3 {[%emt 0:00:27]} Nd3 {[%emt 0:00:24]} 36. Rd4 {[%emt 0:06:26]} Ne5 {[%emt 0:01:18]} 37. Bxd5 {[%emt 0:01:25]} f6 {[%emt 0:00:14]} 38. Rf4 {[%emt 0:01:13]} Kg7 {[%emt 0:01:46]} 39. Rxe5 {[%emt 0:00:31]} Rxe5 {[%emt 0:00:09]} 40. Bc4 {[%emt 0:00:06]} Rf5 {[%emt 0:02:34]} 41. Rd4 {[%emt 0:31:56]} Rxf2 {[%emt 0:31:58]} 42. Rd7+ {[%emt 0:00:00]} Kh6 {[%emt 0:00:00]} 43. g4 {[%emt 0:00:00]} Rf3+ {[%emt 0:00:00]} 44. Kg2 {[%emt 0:00:00]} hxg4 {[%emt 0:00:00]} 45. Rb7 {[%emt 0:00:00]} Rcf5 {[%emt 0:00:00]} 46. Rxb6 {[%emt 0:00:00]} Rf2+ {[%emt 0:00:00]} 47. Kg1 {[%emt 0:00:00]} Rb2 {[%emt 0:00:00]} 48. Re6 {[%emt 0:00:00]} Rff2 {[%emt 0:00:00]} 49. b6 {[%emt 0:00:00]} Rg2+ {[%emt 0:00:00]} 50. Kh1 {[%emt 0:00:00]} Rgc2 {[%emt 0:00:00]} 51. Re1 {[%emt 0:00:00]} Rc3 {[%emt 0:00:00]} 52. b7 {[%emt 0:00:00]} Rcxb3 {[%emt 0:00:00]} 53. Bxb3 {[%emt 0:00:00]} Rxb3 {[%emt 0:00:00]} 54. Re7 {[%emt 0:00:00]} Rb2 {[%emt 0:00:00]} 55. Rf7 {[%emt 0:00:00]} f5 {[%emt 0:00:00]} 56. Rc7 {[%emt 0:00:00]} g3 {[%emt 0:00:00]} 57. Rc5 {[%emt 0:00:00]} Rxb7 {[%emt 0:00:00]} 58. Kg2 {[%emt 0:00:00]} Kh5 {[%emt 0:02:52]} 59. Kxg3 {[%emt 0:00:00]} Rb3+ {[%emt 0:00:04]} 60. Kf2 {[%emt 0:00:00]} Kxh4 {[%emt 0:00:17]} 0-1

[Event "47th Rilton Cup 2017"]
[Site "?"]
[Date "2018.01.02"]
[Round "6"]
[White "Fedorov, Maksim"]
[Black "Sokolov, Ivan"]
[Result "1/2-1/2"]
[ECO "E15"]
[WhiteElo "1232"]
[BlackElo "2589"]
[PlyCount "80"]
[EventDate "2018.??.??"]
[EventType "swiss"]
[EventCountry "SWE"]
[SourceTitle "Stockholm"]
[TimeControl "40/5400+30:1800+30"]
[WhiteClock "0:08:56"]
[BlackClock "0:01:40"]

1. d4 {[%emt 0:00:00]} Nf6 {[%emt 0:09:41]} 2. c4 {[%emt 0:00:00]} e6 {[%emt 0:00:05]} 3. Nf3 {[%emt 0:00:06]} b6 {[%emt 0:00:22]} 4. g3 {[%emt 0:00:34]} Bb4+ {[%emt 0:00:20]} 5. Nbd2 {[%emt 0:03:36]} O-O {[%emt 0:02:34]} 6. Bg2 {[%emt 0:00:45]} d5 {[%emt 0:00:04]} 7. O-O {[%emt 0:03:21]} Bb7 {[%emt 0:00:03]} 8. cxd5 {[%emt 0:11:19]} exd5 {[%emt 0:00:06]} 9. a3 {[%emt 0:00:13]} Bd6 {[%emt 0:01:45]} 10. b4 {[%emt 0:01:57]} Re8 {[%emt 0:12:13]} 11. Bb2 {[%emt 0:03:10]} a5 {[%emt 0:03:11]} 12. bxa5 {[%emt 0:06:01]} Rxa5 {[%emt 0:02:34]} 13. Ne5 {[%emt 0:08:50]} Ra7 {[%emt 0:04:48]} 14. e3 {[%emt 0:14:11]} Nbd7 {[%emt 0:01:06]} 15. f4 {[%emt 0:02:50]} Qe7 {[%emt 0:00:59]} 16. g4 {[%emt 0:05:28]} Rea8 {[%emt 0:06:09]} 17. g5 {[%emt 0:01:56]} Ne4 {[%emt 0:02:28]} 18. Nxe4 {[%emt 0:02:28]} dxe4 {[%emt 0:02:38]} 19. Nc4 {[%emt 0:09:10]} b5 {[%emt 0:07:02]} 20. Nxd6 {[%emt 0:01:06]} Qxd6 {[%emt 0:00:04]} 21. Qc2 {[%emt 0:04:47]} Qc6 {[%emt 0:03:29]} 22. Rac1 {[%emt 0:03:11]} Qxc2 {[%emt 0:00:29]} 23. Rxc2 {[%emt 0:00:03]} Bd5 {[%emt 0:00:15]} 24. Rfc1 {[%emt 0:00:24]} c6 {[%emt 0:04:17]} 25. Rxc6 {[%emt 0:00:32]} Bxc6 {[%emt 0:00:01]} 26. Rxc6 {[%emt 0:00:07]} f5 {[%emt 0:00:02]} 27. gxf6 {[%emt 0:02:21]} Nxf6 {[%emt 0:00:03]} 28. Bh3 {[%emt 0:04:16]} Kf8 {[%emt 0:02:59]} 29. Rc5 {[%emt 0:04:10]} Rxa3 {[%emt 0:09:05]} 30. Bxa3 {[%emt 0:01:48]} Rxa3 {[%emt 0:01:49]} 31. Rxb5 {[%emt 0:00:52]} Rxe3 {[%emt 0:00:02]} 32. Be6 {[%emt 0:01:14]} Rd3 {[%emt 0:03:02]} 33. d5 {[%emt 0:01:25]} g6 {[%emt 0:06:47]} 34. Rb7 {[%emt 0:02:29]} Nxd5 {[%emt 0:04:27]} 35. Rf7+ {[%emt 0:00:11]} Ke8 {[%emt 0:00:07]} 36. Bxd5 {[%emt 0:00:07]} Rxd5 {[%emt 0:00:07]} 37. Rxh7 {[%emt 0:00:04]} Rf5 {[%emt 0:01:01]} 38. Rh4 {[%emt 0:02:07]} Kf7 {[%emt 0:03:55]} 39. Rg4 {[%emt 0:00:27]} Kf6 {[%emt 0:00:25]} 40. Kf2 {[%emt 0:00:44]} g5 1/2-1/2

[Event "47th Rilton Cup 2017"]
[Site "?"]
[Date "2018.01.03"]
[Round "7"]
[White "Grandelius, Nils"]
[Black "Chigaev, Maksim"]
[Result "1/2-1/2"]
[ECO "C92"]
[WhiteElo "2647"]
[BlackElo "2546"]
[PlyCount "84"]
[EventDate "2018.??.??"]
[EventType "swiss"]
[EventCountry "SWE"]
[SourceTitle "Stockholm"]
[TimeControl "40/5400+30:1800+30"]
[WhiteClock "0:14:28"]
[BlackClock "0:21:00"]

1. e4 {[%emt 0:00:15]} e5 {[%emt 0:00:00]} 2. Nf3 {[%emt 0:00:13]} Nc6 {[%emt 0:00:00]} 3. Bb5 {[%emt 0:00:05]} a6 {[%emt 0:00:00]} 4. Ba4 {[%emt 0:00:06]} Nf6 {[%emt 0:00:00]} 5. O-O {[%emt 0:00:46]} Be7 {[%emt 0:00:02]} 6. Re1 {[%emt 0:02:20]} b5 {[%emt 0:00:29]} 7. Bb3 {[%emt 0:00:06]} d6 {[%emt 0:00:07]} 8. c3 {[%emt 0:00:07]} O-O {[%emt 0:00:08]} 9. h3 {[%emt 0:00:45]} Bb7 {[%emt 0:00:37]} 10. d4 {[%emt 0:00:55]} Re8 {[%emt 0:00:07]} 11. Ng5 {[%emt 0:00:43]} Rf8 {[%emt 0:00:17]} 12. Nf3 {[%emt 0:00:05]} Re8 {[%emt 0:00:05]} 13. Nbd2 {[%emt 0:00:50]} Bf8 {[%emt 0:00:27]} 14. d5 {[%emt 0:01:01]} Nb8 {[%emt 0:01:49]} 15. Nf1 {[%emt 0:00:30]} Nbd7 {[%emt 0:00:30]} 16. N3h2 {[%emt 0:02:17]} Nc5 {[%emt 0:12:37]} 17. Bc2 {[%emt 0:00:17]} c6 {[%emt 0:00:09]} 18. b4 {[%emt 0:01:25]} Ncd7 {[%emt 0:00:45]} 19. dxc6 {[%emt 0:00:13]} Bxc6 {[%emt 0:00:07]} 20. Bg5 {[%emt 0:00:06]} Qc7 {[%emt 0:06:35]} 21. Bxf6 {[%emt 0:09:05]} Nxf6 {[%emt 0:00:07]} 22. Ng4 {[%emt 0:00:07]} Nxg4 {[%emt 0:00:07]} 23. hxg4 {[%emt 0:21:30]} Be7 {[%emt 0:00:11]} 24. Bb3 {[%emt 0:09:33]} Bg5 {[%emt 0:23:38]} 25. Qf3 {[%emt 0:00:52]} Rf8 {[%emt 0:07:20]} 26. Ne3 {[%emt 0:09:07]} g6 {[%emt 0:14:17]} 27. Rad1 {[%emt 0:03:10]} Rac8 {[%emt 0:01:12]} 28. Rd3 {[%emt 0:01:23]} Kg7 {[%emt 0:03:00]} 29. Nd5 {[%emt 0:08:31]} Qa7 {[%emt 0:03:51]} 30. Red1 {[%emt 0:02:12]} Rfd8 {[%emt 0:08:56]} 31. g3 {[%emt 0:01:42]} h6 {[%emt 0:02:39]} 32. Kg2 {[%emt 0:01:03]} Rd7 {[%emt 0:03:32]} 33. Qe2 {[%emt 0:04:57]} a5 {[%emt 0:03:52]} 34. bxa5 {[%emt 0:01:30]} Qxa5 {[%emt 0:00:52]} 35. Nb4 {[%emt 0:01:11]} Ba8 {[%emt 0:01:57]} 36. Rxd6 {[%emt 0:08:31]} Rxd6 {[%emt 0:01:55]} 37. Rxd6 {[%emt 0:00:03]} Rxc3 {[%emt 0:00:22]} 38. Nd5 {[%emt 0:03:16]} Rc1 {[%emt 0:03:02]} 39. a4 {[%emt 0:07:53]} bxa4 {[%emt 0:02:14]} 40. Ra6 {[%emt 0:00:23]} Qc5 {[%emt 0:01:21]} 41. Rxa4 {[%emt 0:06:29]} Bc6 {[%emt 0:06:10]} 42. Ra2 {[%emt 0:04:27]} Qb5 {[%emt 0:11:06]} 1/2-1/2

[Event "47th Rilton Cup 2017"]
[Site "?"]
[Date "2018.01.03"]
[Round "7"]
[White "Tari, Aryan"]
[Black "Antipov, Mikhail Al"]
[Result "1-0"]
[ECO "C01"]
[WhiteElo "2599"]
[BlackElo "2588"]
[Annotator "RC"]
[PlyCount "137"]
[EventDate "2018.??.??"]
[EventType "swiss"]
[EventCountry "SWE"]
[SourceTitle "Stockholm"]
[TimeControl "40/5400+30:1800+30"]
[WhiteClock "0:09:04"]
[BlackClock "0:04:35"]

1. e4 {[%emt 0:00:33]} e6 {[%emt 0:00:00]} 2. d4 {[%emt 0:01:04]} d5 {[%emt 0:00:00]} 3. exd5 {[%emt 0:02:14]} exd5 {[%emt 0:00:00]} 4. Nf3 {[%emt 0:00:08]} Bf5 {[%emt 0:05:18]} 5. Bd3 {[%emt 0:04:02]} Bxd3 {[%emt 0:15:37]} 6. Qxd3 {[%emt 0:00:10]} Nc6 {[%emt 0:01:04]} 7. O-O {[%emt 0:07:00]} Qd7 {[%emt 0:01:59]} 8. Re1+ {[%emt 0:04:04]} Nge7 {[%emt 0:00:09]} 9. b4 {[%emt 0:12:56]} Nxb4 {[%emt 0:13:08]} 10. Qb3 {[%emt 0:00:12]} Nbc6 {[%emt 0:00:03]} 11. Qxb7 {[%emt 0:01:27]} Rb8 {[%emt 0:00:07]} 12. Qa6 {[%emt 0:00:46]} f6 {[%emt 0:00:11]} 13. Ba3 {[%emt 0:08:58]} Kf7 {[%emt 0:00:31]} 14. c4 {[%emt 0:02:56]} Nb4 {[%emt 0:34:46]} 15. Qxa7 {[%emt 0:12:04]} Rb6 {[%emt 0:00:08]} 16. c5 {[%emt 0:07:56]} Nbc6 {[%emt 0:02:16]} 17. Qa4 {[%emt 0:01:36]} Rb7 {[%emt 0:00:10]} 18. Nc3 {[%emt 0:06:23]} g5 {[%emt 0:01:41]} 19. Qd1 {[%emt 0:08:24]} Ng6 {[%emt 0:05:37]} 20. Ne2 {[%emt 0:00:44]} g4 {[%emt 0:06:15]} 21. Nd2 {[%emt 0:00:13]} h5 {[%emt 0:00:01]} 22. Nb3 {[%emt 0:01:53]} h4 {[%emt 0:01:00]} 23. Bc1 {[%emt 0:01:28]} Qf5 {[%emt 0:00:29]} 24. Be3 {[%emt 0:07:00]} Nb4 {[%emt 0:08:15]} 25. Rf1 {[%emt 0:01:44]} h3 {[%emt 0:01:18]} 26. Ng3 {[%emt 0:01:11]} Qe6 {[%emt 0:00:01]} 27. gxh3 {[%emt 0:03:35]} Rxh3 {[%emt 0:00:18]} 28. Qb1 {[%emt 0:00:25]} Nh4 {[%emt 0:01:46]} 29. Nd2 {[%emt 0:00:15]} Nf3+ {[%emt 0:00:24]} 30. Nxf3 {[%emt 0:00:07]} gxf3 {[%emt 0:00:01]} 31. Qd1 {[%emt 0:01:37]} Qg4 {[%emt 0:00:06]} 32. Rb1 {[%emt 0:00:39]} Rb8 {[%emt 0:01:00]} 33. Rb3 {[%emt 0:01:07]} Nxa2 {[%emt 0:02:18]} 34. Bd2 {[%emt 0:01:03]} Rh4 {[%emt 0:00:29]} 35. Re1 {[%emt 0:00:52]} Qh3 {[%emt 0:00:30]} 36. Qxf3 {[%emt 0:00:29]} Qxh2+ {[%emt 0:00:01]} 37. Kf1 {[%emt 0:00:05]} Qh3+ {[%emt 0:00:07]} 38. Ke2 {[%emt 0:01:02]} Re8+ {[%emt 0:00:08]} 39. Re3 {[%emt 0:00:28]} Rxe3+ {[%emt 0:01:00]} 40. fxe3 {[%emt 0:00:24]} Qd7 {[%emt 0:01:16]} 41. Rh1 {[%emt 0:02:30]} Rxh1 {[%emt 0:01:25]} 42. Qxh1 {[%emt 0:02:46]} Qb5+ {[%emt 0:00:08]} 43. Kf2 {[%emt 0:00:44]} c6 {[%emt 0:00:25]} 44. Qh7+ {[%emt 0:01:05]} Ke8 {[%emt 0:01:54]} 45. Nf5 {[%emt 0:00:59]} Qb2 {[%emt 0:01:11]} 46. Qg6+ {[%emt 0:00:34]} Kd8 {[%emt 0:02:14]} 47. Qxf6+ {[%emt 0:00:10]} Ke8 {[%emt 0:00:01]} 48. Qxc6+ {[%emt 0:00:39]} Kf7 {[%emt 0:00:24]} 49. Qxd5+ {[%emt 0:00:42]} Kf6 {[%emt 0:00:38]} 50. Qe5+ {[%emt 0:03:29]} Kf7 {[%emt 0:01:57]} 51. Ke1 {[%emt 0:05:55]} Qb1+ {[%emt 0:00:43]} 52. Ke2 {[%emt 0:00:04]} Qc2 {[%emt 0:07:00]} 53. Qd5+ {[%emt 0:05:38]} Kf6 {[%emt 0:01:10]} 54. Qf3 {[%emt 0:06:25]} Ke6 {[%emt 0:06:36]} 55. d5+ {[%emt 0:01:28]} Kd7 {[%emt 0:00:01]} 56. Nd4 {[%emt 0:01:13]} Nc3+ {[%emt 0:03:23]} 57. Kf1 {[%emt 0:00:32]} Qd3+ {[%emt 0:00:25]} 58. Kg1 {[%emt 0:00:25]} Qg6+ {[%emt 0:00:49]} 59. Kf1 {[%emt 0:01:13]} Qd3+ {[%emt 0:00:28]} 60. Ke1 {[%emt 0:01:04]} Qb1+ {[%emt 0:00:16]} 61. Kf2 {[%emt 0:00:01]} Ne4+ {[%emt 0:00:16]} 62. Kg2 {[%emt 0:00:14]} Bxc5 {[%emt 0:00:24]} 63. Qf7+ {[%emt 0:00:35]} Kc8 {[%emt 0:00:35]} 64. Qe8+ {[%emt 0:00:27]} Kb7 {[%emt 0:01:43]} 65. Qc6+ {[%emt 0:00:05]} Kb8 {[%emt 0:00:10]} 66. Nb5 {[%emt 0:00:16]} Nd6 {[%emt 0:01:07]} 67. Qc7+ {[%emt 0:00:42]} Ka8 {[%emt 0:00:01]} 68. Qd8+ {[%emt 0:00:32]} Kb7 {[%emt 0:00:04]} 69. Nxd6+ {[%emt 0:00:14]} 1-0

[Event "47th Rilton Cup 2017"]
[Site "?"]
[Date "2018.01.03"]
[Round "7"]
[White "Nihal, Sarin"]
[Black "Sasikiran, Krishnan"]
[Result "1/2-1/2"]
[ECO "D45"]
[WhiteElo "2524"]
[BlackElo "2680"]
[Annotator "RC"]
[PlyCount "64"]
[EventDate "2018.??.??"]
[EventType "swiss"]
[EventCountry "SWE"]
[SourceTitle "Stockholm"]
[TimeControl "40/5400+30:1800+30"]
[WhiteClock "0:12:39"]
[BlackClock "0:13:43"]

1. d4 {[%emt 0:00:00]} d5 {[%emt 0:00:20]} 2. c4 {[%emt 0:00:00]} e6 {[%emt 0:00:09]} 3. Nf3 {[%emt 0:00:00]} Nf6 {[%emt 0:00:12]} 4. Nc3 {[%emt 0:00:00]} c6 {[%emt 0:00:12]} 5. e3 {[%emt 0:00:00]} Nbd7 {[%emt 0:00:08]} 6. Qc2 {[%emt 0:00:08]} Bd6 {[%emt 0:00:11]} 7. b3 {[%emt 0:00:06]} O-O {[%emt 0:00:15]} 8. Be2 {[%emt 0:00:04]} b6 {[%emt 0:07:37]} 9. O-O {[%emt 0:00:15]} Bb7 {[%emt 0:00:06]} 10. Bb2 {[%emt 0:00:04]} Re8 {[%emt 0:02:44]} 11. Rad1 {[%emt 0:08:21]} Rc8 {[%emt 0:05:56]} 12. e4 {[%emt 0:09:41]} e5 {[%emt 0:09:06]} 13. dxe5 {[%emt 0:25:37]} Nxe5 {[%emt 0:06:27]} 14. exd5 {[%emt 0:13:58]} cxd5 {[%emt 0:05:00]} 15. Nxe5 {[%emt 0:02:15]} Bxe5 {[%emt 0:06:10]} 16. Bf3 {[%emt 0:01:21]} Qc7 {[%emt 0:04:34]} 17. Nxd5 {[%emt 0:02:28]} Bxd5 {[%emt 0:05:30]} 18. Bxd5 {[%emt 0:00:30]} Bxh2+ {[%emt 0:00:44]} 19. Kh1 {[%emt 0:00:01]} Be5 {[%emt 0:02:12]} 20. Bc1 {[%emt 0:09:41]} Bf4 {[%emt 0:07:51]} 21. Bb2 {[%emt 0:06:29]} Nxd5 {[%emt 0:11:08]} 22. Rxd5 {[%emt 0:00:15]} Qc6 {[%emt 0:01:38]} 23. Qd1 {[%emt 0:00:16]} Qh6+ {[%emt 0:01:47]} 24. Rh5 {[%emt 0:00:27]} Qg6 {[%emt 0:00:51]} 25. Rd5 {[%emt 0:02:18]} Qh6+ {[%emt 0:07:39]} 26. Rh5 {[%emt 0:00:04]} Qg6 {[%emt 0:00:03]} 27. Rd5 {[%emt 0:00:08]} Rc6 {[%emt 0:01:01]} 28. Qf3 {[%emt 0:06:29]} Qe4 {[%emt 0:02:11]} 29. Qxe4 {[%emt 0:01:15]} Rh6+ {[%emt 0:00:04]} 30. Kg1 {[%emt 0:00:03]} Bh2+ {[%emt 0:00:07]} 31. Kh1 {[%emt 0:00:01]} Bc7+ {[%emt 0:01:16]} 32. Kg1 {[%emt 0:00:02]} Bh2+ {[%emt 0:00:12]} 1/2-1/2

[Event "47th Rilton Cup 2017"]
[Site "?"]
[Date "2018.01.03"]
[Round "7"]
[White "Larson, Matthew W"]
[Black "Valsecchi, Alessio"]
[Result "0-1"]
[ECO "D53"]
[WhiteElo "2382"]
[BlackElo "2514"]
[Annotator "RC"]
[PlyCount "124"]
[EventDate "2018.??.??"]
[EventType "swiss"]
[EventCountry "SWE"]
[SourceTitle "Stockholm"]
[TimeControl "40/5400+30:1800+30"]
[WhiteClock "0:13:07"]
[BlackClock "0:38:22"]

1. d4 {[%emt 0:00:00]} Nf6 {[%emt 0:00:00]} 2. c4 {[%emt 0:00:00]} e6 {[%emt 0:00:00]} 3. Nc3 {[%emt 0:00:00]} d5 {[%emt 0:00:00]} 4. Bg5 {[%emt 0:00:00]} Be7 {[%emt 0:00:22]} 5. cxd5 {[%emt 0:00:00]} exd5 {[%emt 0:00:09]} 6. e3 {[%emt 0:00:00]} c6 {[%emt 0:00:28]} 7. Bd3 {[%emt 0:00:23]} Nbd7 {[%emt 0:00:17]} 8. f3 {[%emt 0:01:40]} Nh5 {[%emt 0:06:32]} 9. Bxe7 {[%emt 0:00:23]} Qxe7 {[%emt 0:00:03]} 10. Qd2 {[%emt 0:00:48]} Nf4 {[%emt 0:01:36]} 11. Bf1 {[%emt 0:06:09]} Nb6 {[%emt 0:01:51]} 12. Kf2 {[%emt 0:03:16]} Ne6 {[%emt 0:05:37]} 13. Bd3 {[%emt 0:00:43]} O-O {[%emt 0:06:34]} 14. Nge2 {[%emt 0:00:38]} f5 {[%emt 0:00:51]} 15. Rad1 {[%emt 0:06:04]} Bd7 {[%emt 0:00:51]} 16. Rhe1 {[%emt 0:06:36]} Rae8 {[%emt 0:08:33]} 17. Kg1 {[%emt 0:02:05]} Qf6 {[%emt 0:01:27]} 18. Nc1 {[%emt 0:07:13]} f4 {[%emt 0:04:40]} 19. Bf1 {[%emt 0:03:20]} fxe3 {[%emt 0:00:23]} 20. Rxe3 {[%emt 0:00:08]} Nf4 {[%emt 0:07:06]} 21. Rde1 {[%emt 0:06:47]} Rxe3 {[%emt 0:07:04]} 22. Rxe3 {[%emt 0:00:35]} Qg5 {[%emt 0:02:19]} 23. Qe1 {[%emt 0:06:32]} Nc4 {[%emt 0:06:47]} 24. Re7 {[%emt 0:01:37]} Nd2 {[%emt 0:00:42]} 25. h4 {[%emt 0:07:45]} Nxf3+ {[%emt 0:09:15]} 26. Kh1 {[%emt 0:00:13]} Nxe1 {[%emt 0:04:49]} 27. hxg5 {[%emt 0:00:13]} Ne6 {[%emt 0:00:08]} 28. Kg1 {[%emt 0:05:09]} Rf7 {[%emt 0:00:48]} 29. Rxf7 {[%emt 0:00:10]} Kxf7 {[%emt 0:00:03]} 30. Nb3 {[%emt 0:00:47]} Nc2 {[%emt 0:01:29]} 31. Ne2 {[%emt 0:01:11]} b6 {[%emt 0:00:42]} 32. Kf2 {[%emt 0:01:16]} Nxg5 {[%emt 0:01:19]} 33. Nf4 {[%emt 0:00:47]} Ne4+ {[%emt 0:03:29]} 34. Kf3 {[%emt 0:02:20]} Bg4+ {[%emt 0:05:22]} 35. Kxg4 {[%emt 0:00:05]} Ne3+ {[%emt 0:00:06]} 36. Kf3 {[%emt 0:03:01]} Nxf1 {[%emt 0:00:03]} 37. Nc1 {[%emt 0:01:01]} Nh2+ {[%emt 0:07:16]} 38. Ke3 {[%emt 0:02:14]} Ng4+ {[%emt 0:02:44]} 39. Kf3 {[%emt 0:00:30]} Nh2+ {[%emt 0:06:23]} 40. Ke3 {[%emt 0:00:07]} g5 {[%emt 0:00:29]} 41. Nfd3 {[%emt 0:33:27]} Ke6 {[%emt 0:30:10]} 42. Ne5 {[%emt 0:01:06]} Nf1+ {[%emt 0:00:00]} 43. Kf3 {[%emt 0:00:00]} c5 {[%emt 0:00:00]} 44. Ncd3 {[%emt 0:00:00]} Nh2+ {[%emt 0:00:00]} 45. Ke3 {[%emt 0:00:00]} c4 {[%emt 0:00:00]} 46. Nb4 {[%emt 0:00:00]} Ng3 {[%emt 0:00:00]} 47. Kd2 {[%emt 0:00:00]} Nhf1+ {[%emt 0:00:00]} 48. Ke1 {[%emt 0:00:00]} Ne3 {[%emt 0:00:00]} 49. Kf2 {[%emt 0:00:00]} Nef5 {[%emt 0:00:00]} 50. Nf3 {[%emt 0:00:00]} Ne4+ {[%emt 0:00:00]} 51. Ke1 {[%emt 0:00:00]} g4 {[%emt 0:00:00]} 52. Ne5 {[%emt 0:00:00]} h5 {[%emt 0:00:00]} 53. Ng6 {[%emt 0:00:00]} Nxd4 {[%emt 0:00:00]} 54. Nf4+ {[%emt 0:00:00]} Ke5 {[%emt 0:00:00]} 55. Nfxd5 {[%emt 0:00:00]} a5 {[%emt 0:00:00]} 56. Nxb6 {[%emt 0:00:00]} axb4 {[%emt 0:00:00]} 57. Nxc4+ {[%emt 0:00:00]} Kf4 {[%emt 0:00:00]} 58. a4 {[%emt 0:00:00]} bxa3 {[%emt 0:00:00]} 59. bxa3 {[%emt 0:00:00]} h4 {[%emt 0:00:00]} 60. Kf1 {[%emt 0:00:00]} h3 {[%emt 0:00:00]} 61. gxh3 {[%emt 0:00:00]} gxh3 {[%emt 0:00:00]} 62. a4 {[%emt 0:00:00]} Ng3+ {[%emt 0:00:00]} 0-1

[Event "47th Rilton Cup 2017"]
[Site "?"]
[Date "2018.01.04"]
[Round "8"]
[White "Gledura, Benjamin"]
[Black "Salomon, Johan"]
[Result "0-1"]
[ECO "A09"]
[WhiteElo "2613"]
[BlackElo "2475"]
[Annotator "RC"]
[PlyCount "98"]
[EventDate "2018.??.??"]
[EventType "swiss"]
[EventCountry "SWE"]
[SourceTitle "Stockholm"]
[TimeControl "40/5400+30:1800+30"]
[WhiteClock "0:09:17"]
[BlackClock "0:18:07"]

1. Nf3 {[%emt 0:00:00]} d5 {[%emt 0:00:00]} 2. c4 {[%emt 0:00:06]} d4 {[%emt 0:00:59]} 3. b4 {[%emt 0:01:02]} f6 {[%emt 0:00:34]} 4. d3 {[%emt 0:02:00]} e5 {[%emt 0:00:25]} 5. a3 {[%emt 0:00:20]} a5 {[%emt 0:04:00]} 6. b5 {[%emt 0:01:00]} Ne7 {[%emt 0:01:49]} 7. g3 {[%emt 0:03:55]} Nf5 {[%emt 0:00:10]} 8. Bg2 {[%emt 0:01:27]} Nd7 {[%emt 0:02:46]} 9. Nfd2 {[%emt 0:09:26]} a4 {[%emt 0:05:28]} 10. Ne4 {[%emt 0:01:54]} Be7 {[%emt 0:03:43]} 11. Bd2 {[%emt 0:03:16]} c6 {[%emt 0:07:26]} 12. bxc6 {[%emt 0:02:20]} bxc6 {[%emt 0:00:04]} 13. Bb4 {[%emt 0:04:39]} O-O {[%emt 0:03:42]} 14. c5 {[%emt 0:06:44]} Nb8 {[%emt 0:01:40]} 15. Nbd2 {[%emt 0:01:29]} Be6 {[%emt 0:00:46]} 16. Nc4 {[%emt 0:00:24]} Bxc4 {[%emt 0:08:36]} 17. dxc4 {[%emt 0:00:07]} Nh6 {[%emt 0:00:07]} 18. O-O {[%emt 0:20:47]} Nd7 {[%emt 0:07:55]} 19. Qd3 {[%emt 0:10:57]} f5 {[%emt 0:09:21]} 20. Nd6 {[%emt 0:00:53]} Nxc5 {[%emt 0:08:14]} 21. Bxc5 {[%emt 0:00:11]} Bxd6 {[%emt 0:00:06]} 22. Bxd6 {[%emt 0:00:23]} Qxd6 {[%emt 0:00:05]} 23. c5 {[%emt 0:00:06]} Qe6 {[%emt 0:03:32]} 24. f4 {[%emt 0:00:07]} e4 {[%emt 0:10:03]} 25. Qxd4 {[%emt 0:00:06]} Rfd8 {[%emt 0:00:04]} 26. Qc3 {[%emt 0:00:53]} Qb3 {[%emt 0:00:55]} 27. Qxb3+ {[%emt 0:02:15]} axb3 {[%emt 0:00:04]} 28. Rfb1 {[%emt 0:00:20]} Rdb8 {[%emt 0:02:14]} 29. h3 {[%emt 0:03:44]} Ra5 {[%emt 0:00:41]} 30. a4 {[%emt 0:07:11]} Rxc5 {[%emt 0:01:57]} 31. Kf2 {[%emt 0:00:11]} Rc2 {[%emt 0:04:42]} 32. a5 {[%emt 0:00:26]} c5 {[%emt 0:00:19]} 33. a6 {[%emt 0:00:21]} c4 {[%emt 0:00:19]} 34. a7 {[%emt 0:00:27]} Ra8 {[%emt 0:00:04]} 35. g4 {[%emt 0:03:18]} g6 {[%emt 0:02:33]} 36. Ra6 {[%emt 0:00:33]} Nf7 {[%emt 0:00:30]} 37. gxf5 {[%emt 0:01:47]} gxf5 {[%emt 0:00:03]} 38. Ra5 {[%emt 0:00:11]} Nd6 {[%emt 0:05:11]} 39. Rd5 {[%emt 0:00:09]} Rxa7 {[%emt 0:00:23]} 40. Rxd6 {[%emt 0:00:07]} Raa2 {[%emt 0:01:51]} 41. Bf1 b2 {[%emt 0:35:58]} 42. Rdd1 {[%emt 0:36:38]} Ra3 {[%emt 0:00:00]} 43. h4 {[%emt 0:00:00]} Rf3+ {[%emt 0:00:00]} 44. Ke1 {[%emt 0:00:00]} Rxf4 {[%emt 0:00:00]} 45. Bh3 {[%emt 0:00:00]} Rxh4 {[%emt 0:00:00]} 46. Bxf5 {[%emt 0:00:00]} e3 {[%emt 0:00:00]} 47. Be6+ {[%emt 0:00:00]} Kg7 {[%emt 0:00:00]} 48. Bd5 {[%emt 0:00:00]} c3 {[%emt 0:00:00]} 49. Rd3 {[%emt 0:00:00]} Rc1+ {[%emt 0:00:00]} 0-1